Cogmind - Beta 14 *** ADVENTURER MODE // 2024.12.07 @ 23:27:17 Player: Domo Result: Destroyed by G-34 Mercenary with Small Laser Performance ------------- Evolutions (1) 500 Regions Visited (2) 400 Robots Destroyed (18) 90 Value Destroyed (375) 375 Prototype IDs (4) 80 Alien Tech Used (0) 0 Bonus (0) 0 TOTAL SCORE: 1445 Bonus ------- None Cogmind --------- Core Integrity 0/400 Matter 132/300 Energy 300/300 System Corruption 12% Temperature Cool (6) Movement Core (100) Ox1 Location -9/Materials Parts ------- > --- POWER (1) -------- (None) > --- PROPULSION (2) --- (None) > --- UTILITY (4) ------ Heat Sink Large Battery > --- WEAPON (2) ------- (None) > --- INVENTORY (5) ---- (None) Peak State ------------ > --- POWER ------------ Improved Ion Engine > --- PROPULSION ------- (None) > --- UTILITY ---------- Heat Sink Large Battery Improved Terrain Scanner Hardened Light Armor Plating > --- WEAPON ----------- Light Assault Rifle Welding Torch > --- INVENTORY -------- Ion Engine Tractor Beam [Rating: 11] Favorites ----------- Power Ion Engine Engine Ion Engine Propulsion Aluminum Leg Leg Aluminum Leg Utility Improved Terrain Scanner Device Improved Terrain Scanner Storage Large Battery Processor Signal Interpreter Protection Hardened Light Armor Plating Weapon Light Assault Rifle Ballistic Gun Light Assault Rifle Ballistic Cannon Light Cannon Launcher Grenade Launcher Special Weapon Welding Torch Build | -11 -10 -9 ------- Run | Yrd Mat Mat Slots Evolved 2 | . . 2 Power . | . . . Propulsion . | . . . Utility 2 | . . 2 Weapon . | . . . Parts Attached 36 | 6 15 15 Power 6 | 2 1 3 Engine 6 | 2 1 3 Core . | . . . Reactor . | . . . Propulsion 2 | 2 . . Treads . | . . . Leg 2 | 2 . . Wheel . | . . . Hover . | . . . Flight . | . . . Utility 18 | 1 8 9 Device 10 | 1 5 4 Storage 4 | . 2 2 Processor 1 | . 1 . Hackware . | . . . Protection 3 | . . 3 Artifact . | . . . Weapon 10 | 1 6 3 Energy Gun . | . . . Energy Cannon . | . . . Ballistic Gun 6 | 1 4 1 Ballistic Cannon 1 | . 1 . Launcher 2 | . 1 1 Special Weapon 1 | . . 1 Impact Weapon . | . . . Slashing Weapon . | . . . Piercing Weapon . | . . . Special Melee Weapon . | . . . Unidentified Prototypes . | . . . Parts Lost 18 | . 2 16 Power 4 | . 1 3 Propulsion 2 | . . 2 Utility 7 | . . 7 Weapon 5 | . 1 4 Highest Loss Streak 8 | . 2 8 To Critical Strikes . | . . . Average Slot Usage (%) 86 | . 92 70 Engine 12 | . 13 10 Leg 21 | . 28 4 Device 18 | . 18 20 Storage 2 | . . 7 Processor 2 | . 2 2 Protection 2 | . . 8 Ballistic Gun 9 | . 10 7 Ballistic Cannon 10 | . 13 2 Launcher 2 | . 2 1 Peak Build Rating 11 | 7 9 11 Average Rating 7 | 6 7 8 On Entrance 4 | . 7 7 Naked Turns . | . . . Heaviest Build 19 | 7 12 19 Greatest Support 20 | 20 20 20 Greatest Overweight (x) 6 | . . 6 Average Overweight (x) . | . . 2 Largest Inventory Capacity 5 | 5 5 5 Average Capacity 5 | 5 5 5 Most Carried 5 | 1 5 5 Average Carried 2 | . 3 2 Final Capacity 5 | 5 5 5 Final Carried 5 | 1 5 . Class Distribution -------------------- 100% | Mutant Dominant Class ---------------- Mutant | -10/Materials Mutant | -9/Materials Resources | -11 -10 -9 ----------- Run | Yrd Mat Mat Matter Collected 550 | 265 163 122 Remotely 45 | . . 45 Salvage Created 324 | 101 155 68 Parts 29 | 8 11 10 Haulers Intercepted . | . . . Recyclers Shooed 1 | 1 . . Parts Field Recycled . | . . . Retrieved Matter . | . . . Parts Self-Destructed . | . . . Prevented . | . . . Kills | -11 -10 -9 ------- Run | Yrd Mat Mat Combat Hostiles Destroyed 10 | . 7 3 Guns 2 | . 1 1 Cannons 5 | . 4 1 AOE 3 | . 2 1 Classes Destroyed 8 | 2 4 2 Builder 1 | . 1 . Tunneler 1 | 1 . . Recycler 1 | 1 . . Operator 1 | . . 1 Watcher 4 | . 3 1 Swarmer 5 | . 3 2 Grunt 4 | . 4 . Sentry 1 | . . 1 Best Kill Streak 5 | 1 5 2 Combat Bots Only 3 | . 3 1 Max Kills in Single Turn 2 | 1 2 1 Gunslinging . | . . . Exploded 1 | . 1 1 Melee . | . . . Uniques/NPCs Destroyed . | . . . Combat | -11 -10 -9 -------- Run | Yrd Mat Mat Hostile Shots Fired 197 | . 49 148 Missed 61 | . 23 38 Damage Taken 1745 | . 327 1418 Core 475 | . 73 402 Absorbed by Shields . | . . . Redirected to Shielding 1 | . . 1 Ignored by Resistances 422 | . 100 322 Core Remaining (%) 85 | 100 70 . Volleys Fired 56 | 5 36 15 Largest 2 | 1 2 2 Hottest 65 | 20 65 65 Shots Fired 93 | 5 68 20 Gun 41 | 5 26 10 Cannon 43 | . 36 7 Launcher 9 | . 6 3 Special . | . . . Kinetic 84 | 5 62 17 Thermal . | . . . Explosive 9 | . 6 3 Electromagnetic . | . . . Robot Hit Streak 16 | 5 16 7 Robot Miss Streak 3 | . 3 1 Penetration Max . | . . . Secondary Targets . | . . . Shots Hit Robots 61 | 5 42 14 Core Hits 45 | 4 24 17 Critical Kills . | . . . Critical Parts Destroyed . | . . . Critical Strikes 1 | . 1 . Blast 1 | . 1 . Melee Attacks . | . . . Impact . | . . . Slashing . | . . . Piercing . | . . . Sneak Attacks . | . . . Combat Hostiles . | . . . Follow-up Attacks . | . . . Damage Inflicted 1285 | 35 892 358 Guns 213 | 35 118 60 Cannons 516 | . 406 110 Explosions 525 | . 368 157 Melee . | . . . Ramming 31 | . . 31 Kinetic 729 | 35 524 170 Thermal . | . . . Explosive 525 | . 368 157 Electromagnetic . | . . . Impact . | . . . Slashing . | . . . Piercing . | . . . Highest Corruption 12 | . . 12 Average Corruption 10 | . . 10 Corruption Purged . | . . . Corruption Blocked . | . . . Effects 19 | . . 19 Message Errors 5 | . . 5 Matter Fused 5 | . . 5 Heat Flow Errors 1 | . . 1 Energy Discharges 1 | . . 1 Data Loss (minor) 1 | . . 1 Misfires 2 | . . 2 Alerts 1 | . . 1 Misdirections 3 | . . 3 Overload Shots . | . . . Overflow Damage 11 | . 10 1 Projectiles . | . . . Explosions 11 | . 10 1 Melee . | . . . Knockbacks 11 | . 11 . Impact . | . . . Kinetic 9 | . 9 . Secondary 2 | . 2 . Self-Inflicted Damage 153 | . 105 48 Shots 7 | . 5 2 Rammed 19 | . . 19 Targets Rammed 19 | . . 19 Kicked . | . . . Crushed . | . . . Highest Temperature 119 | . 33 119 Average Temperature 13 | . 10 63 Received Heat Transfer 852 | . 138 714 Siege Activations . | . . . Robots Corrupted . | . . . Combat Hostiles . | . . . Parts Fried . | . . . Impact Corruptions . | . . . Robots Melted . | . . . Combat Hostiles . | . . . Parts Melted . | . . . Heat Transferred . | . . . Parts Sabotaged . | . . . Parts Stolen . | . . . Parts Stripped . | . . . Power Chain Reactions . | . . . Alert | -11 -10 -9 ------- Run | Yrd Mat Mat Peak Influence 188 | 10 188 131 Initial 5 | . 5 . Average 48 | 8 56 47 Maximum Alert Level . | . . . Low Security (%) 100 | 100 100 100 Level 1 . | . . . Level 2 . | . . . Level 3 . | . . . Level 4 . | . . . Level 5 . | . . . High Security . | . . . Max Security . | . . . Squads Dispatched 4 | . 1 3 Investigation 2 | . 1 1 Extermination . | . . . Reinforcement 2 | . . 2 Assault . | . . . Garrison . | . . . Intercept . | . . . Searches Triggered . | . . . Construction Impeded 1 | . . 1 Haulers Reinforced . | . . . Active Scanning Responses . | . . . Cargo Convoy Interrupts . | . . . Stealth | -11 -10 -9 --------- Run | Yrd Mat Mat Distress Signals 2 | . 2 . Communications Jammed . | . . . Distress Signals . | . . . Times Spotted 30 | . 19 11 Peak Tracking Total 6 | . 4 6 Tactical Retreats 9 | . 8 1 Traps | -11 -10 -9 ------- Run | Yrd Mat Mat Traps Triggered 1 | . . 1 Indirectly . | . . . Trap Hack Attempts . | . . . Triggered . | . . . Disarmed . | . . . Reprogrammed . | . . . Reused . | . . . Traps Extracted . | . . . Installed . | . . . Triggered . | . . . Machines | -11 -10 -9 ---------- Run | Yrd Mat Mat Machines Disabled 2 | . 2 . Max in Single Turn 2 | . 2 . Machines Repaired . | . . . Machines Dismantled . | . . . Machines Sabotaged . | . . . Overloaded Fab Kills . | . . . Hacking | -11 -10 -9 --------- Run | Yrd Mat Mat Machines Accessed 8 | . 6 2 Terminals 6 | . 4 2 Fabricators . | . . . Repair Stations . | . . . Recycling Units 2 | . 2 . Scanalyzers . | . . . Garrison Access . | . . . Total Hacks 21 | . 15 6 Successful 19 | . 15 4 Failed 2 | . . 2 Catastrophic . | . . . Database Lockouts . | . . . Manual 6 | . 6 . Terminals 17 | . 11 6 Fabricators . | . . . Repair Stations . | . . . Recycling Units 4 | . 4 . Scanalyzers . | . . . Garrison Access . | . . . Terminal Hacks 15 | . 11 4 Record 7 | . 7 . Robot Analysis 1 | . . 1 Prototype ID Bank 2 | . 1 1 Alert Level 2 | . 1 1 Locate Traps 1 | . 1 . Investigation Status 2 | . 1 1 Fabricator Hacks . | . . . Repair Station Hacks . | . . . Recycling Unit Hacks 4 | . 4 . Process 1 | . 1 . Report Inventory 1 | . 1 . Retrieve Components 2 | . 2 . Scanalyzer . | . . . Garrison Access Hacks . | . . . Unauthorized Hacks . | . . . Terminals . | . . . Fabricators . | . . . Repair Stations . | . . . Recycling Units . | . . . Scanalyzers . | . . . Garrison Access . | . . . Data Cores Recovered 1 | . . 1 Used . | . . . Hacking Detections 3 | . 2 1 Full Trace Events 2 | . 1 1 Feedback Events 1 | . . 1 Corruption 1 | . . 1 Feedback Blocked . | . . . Robot Schematics Acquired . | . . . Robots Built . | . . . Authchips . | . . . Time . | . . . Total Robot Build Rating . | . . . Part Schematics Acquired . | . . . Parts Built . | . . . Authchips . | . . . Time . | . . . Total Part Build Rating . | . . . Parts Repaired . | . . . Time . | . . . Parts Recycled . | . . . Recycled Matter 186 | . 186 . Retrieved Matter . | . . . Retrieved Components . | . . . Parts Scanalyzed . | . . . Part Schematics Acquired . | . . . Parts Damaged . | . . . Bothacking | -11 -10 -9 ------------ Run | Yrd Mat Mat Used RIF Installer . | . . . Robots Hacked . | . . . Non-combat . | . . . Combat . | . . . Robot Hacks Applied . | . . . Relay Couplers Released . | . . . Fabnet Peak Effective % . | . . . Robots Rewired . | . . . Allies Hacked . | . . . Hacks Repelled . | . . . Allies | -11 -10 -9 -------- Run | Yrd Mat Mat Total Allies . | . . . Largest Group . | . . . Highest-Rated Group . | . . . Highest-Rated Ally . | . . . Total Orders . | . . . Ally Attacks . | . . . Total Damage . | . . . Kills . | . . . Allies Corrupted . | . . . Allies Melted . | . . . Intel | -11 -10 -9 ------- Run | Yrd Mat Mat Robot Analysis Total 1 | . . 1 Derelict Logs Recovered . | . . . Drone Launches . | . . . Drone Recoveries . | . . . Exploration | -11 -10 -9 ------------- Run | Yrd Mat Mat Turns Passed 2331 | 271 1463 597 Spaces Moved 1404 | 165 1014 225 Core 154 | 16 . 138 Treads . | . . . Legs 1250 | 149 1014 87 Wheels . | . . . Hover . | . . . Flight . | . . . Fastest Speed 50 | 50 120 50 Average Speed 131 | 113 120 196 Slowest Speed 350 | 120 120 350 Overloaded Moves . | . . . Propulsion Burnouts . | . . . Robots Hopped . | . . . Cave-ins Triggered 1 | . . 1 Exploration Rate (%) 30 | 9 70 13 Regions Visited 2 Branch Regions . Pre-discovered Areas . | . . . Known Exits Taken 1 | . 1 . Unknown Exits Taken 1 | 1 . . Scrap Searched . | . . . Spaces Dug . | . . . Terrain Destroyed 54 | . 25 29 Melee . | . . . Projectile . | . . . AOE 54 | . 25 29 Terrain Rammed . | . . . Walls Destroyed . | . . . Machines Disabled . | . . . Actions | -11 -10 -9 --------- Run | Yrd Mat Mat Total 1807 | 246 1204 357 Wait 246 | 60 113 73 Move 1402 | 164 1013 225 Hop . | . . . Pick Up 28 | 8 13 7 Fast Attach . | . . . Attach 35 | 6 15 14 Detach 12 | 1 9 2 Swap 1 | . . 1 Drop 7 | 2 5 . Fire 56 | 5 36 15 Melee . | . . . Ram 20 | . . 20 Kick . | . . . Crush . | . . . Escape Stasis . | . . . Rewire . | . . . Trap . | . . . Miscellaneous . | . . . Route ------- -11/Scrapyard -10/Materials (discovered 4 exits: *Mat x2 / [*Min x2]) -9/Materials History --------- Turn | Location | Event 10 | -11/Scrapyard | Discovered new exit (range 15) 272 | -11/Scrapyard | Entered Materials 298 | -10/Materials | Discovered new exit (range 11) 336 | -10/Materials | Build established: Mutant 1002 | -10/Materials | Discovered new exit (range 12) 1152 | -10/Materials | Discovered new exit (range 15) 1602 | -10/Materials | Discovered new exit (range 16) 1734 | -10/Materials | Identified exit to Materials 1735 | -10/Materials | Entered another Materials area 1735 | -9/Materials | Evolved 2 slots: Utility x2 1872 | -9/Materials | Crushed by falling debris 1872 | -9/Materials | System corruption reached 10% 1943 | -9/Materials | Lost 8 parts (1p2n3u2w) 2297 | -9/Materials | Core integrity fell below 50% 2320 | -9/Materials | Core integrity fell below 20% 2332 | -9/Materials | Destroyed by G-34 Mercenary with Small Laser Last Messages --------------- Imp. Terrain Scanner destroyed. Imp. Ion Engine destroyed. Slammed into G-47 Trooper. Destabilizing: Core damaged (-16). G-34 Mercenary destroyed. Slammed into G-47 Trooper. Acquired 45 matter. Heat Sink destroyed. Acquired Heat Sink. System corrupted: Matter fused (-5). Slammed into G-47 Trooper. Hadron Collector disabled. Ion Engine destroyed. Tractor Beam destroyed. Critical hit (Burn: +37). Slammed into G-34 Mercenary. R-06 Scavenger collects Aluminum Leg. Slammed into G-34 Mercenary. Destabilizing: System corrupted (+1). Slammed into G-34 Mercenary. Map ----- +----------------------------------------------------+ | ???????????????????????????????? | | ???????????????????????????????? | | ??????????????????"??????#?????? | | ???????????????????????#???#???? | | ???????????????????????????????? | | ????????????????#???????????##?? | | ?????????????? ?##????#????????# | | ????????????????#?#??????#?##??? | | ????????"????? #??????#?##???#?? | | ???????? "??? ?#??#?#???????#?? | | ????????? ? #???#????#??#???? | | ?????? ??"? #?##????#???#???# | | ??????? ?? ?? ?????#????##??#?? | | ?????? ??? #???????????????? | | ?????##?###### ?????#????#??#??? | | ?????? ?# ## #???########?#??# | | ????????# ## ##??# T= ##???? | | ? ????## ## ##??# #???#? | | ???????## ## #??## """ #???#? | | ?? ??? ## ## #???# """ ###??? | | ??????# ## #??## """" ##???? | | ????????# ## ##### #????? | | ##########+### ###g####?#?## | | #???## | | ^ T g#??### | | ^ r @##?##? | | ##############o ########????? | | ?????########## ########??#??? | | ?????## # # | ##????? | | ??????#""" # # ##?#??# | | #?#???#""" ! + + """ #?#?#?# | | ??????#""" # # """ #?##??? | | ????#?# # # """ =#?#?#?? | | ?????########?# # #?????? | | ??#???######### ###########??? | | ??#???# ## # #??? | | ??????# ## # #??? | | ?????## # + #??? | | ??????# ## #??? | | ??????# # ###########??? | | ??????# = # ##???????????? | | ????###+# = #???????????? | | ???## # # ???????? | | #### # + ???????? | | * #???????????? | | #### # ##### #???????????? | | # #??# #???????????? | | # #??# #???????????? | | # #??# #???????????? | | # #??# #???????????? | +----------------------------------------------------+ Best States ------------- Heat Dissipation 38 Energy Generation 12 Energy Capacity 465 Matter Stores 300 Matter Capacity 400 Sight Range 16 Robot Scan Range 14 Terrain Scan Range 16 Terrain Scan Density 10 ECM Strength 1 Armor Coverage 150 Resistance: KI 20 Resistance: TH 20 Resistance: EX 20 Resistance: EM 20 Resistance: I 20 Resistance: S 20 Resistance: P 20 Core Shielding 20 Evasion (%) 55 Offensive Hacking 10 Item Schematics ----------------- None Robot Schematics ------------------ None Fabricated ------------ Nothing Alien Tech Used ----------------- None Achievements -------------- Let's See Who's Tougher One Hack Too Far Oops System Compromised Unlikely Earthworm Challenges ------------ None Game ------ Seed NeutrinoSuperchargedRail Manual? 0 Play Time 01:09:44 Cumulative 2.5 hours Start 2024.12.05 @ 19:26:32 End 2024.12.07 @ 23:27:17 Sessions 3 Manual Loads 0 Difficulty Adventurer Special Mode None Game No. 3 Rogue 0 Adventurer 3 Explorer 0 Win Type - Total 0 Types 0/0/0/0/0/0/0/0/0 Lore% 0 Gallery% 3 Achievement% 3 Wizard Run 0 Options --------- Layout 1 ASCII 0 Keyboard 1 Movement Vi Keybinds 0 Fullscreen 2 Font 24/Smallcaps Map View 50x35 Zoom Use 0% Tactical HUD 0 Map Filters NONE Filters NONE Steam X RUN: 8f3c142d-5df1-4b6b-afd7-70f1a6ff85e5